fUSD/lending_fUSD_20251204
["ID","MTS","AMOUNT","RATE_DAILY","PERIOD"]
[396230244,1764846646963,-500.0,0.0001699,2]
[396230245,1764846646973,-150.0,0.0001699,2]
[396230246,1764846646982,-150.0,0.0001699,2]
[396230247,1764846646991,-199.73901062,0.0001699,2]
[396230248,1764846647001,-500.0,0.0001699,2]
[396230249,1764846647011,-203.85379449,0.0001699,2]
[396230250,1764846647020,-500.0,0.0001699,2]
[396230251,1764846647030,-150.0,0.0001699,2]
[396230252,1764846647039,-64968.07255062,0.00016996,2]
[396230253,1764846647316,-977.55042779,0.00016438,2]
[396230254,1764846647326,-881.40957221,0.00016438,2]
[396230255,1764846861719,300.0,0.0001699,60]
[396230256,1764846952219,150.0,0.00025,120]
[396230281,1764847831879,-166.66,0.00015219,2]
[396230282,1764847831888,-97.9194,0.00015539,2]
[396230283,1764847831933,-68.7406,0.00015539,2]
[396230284,1764847831943,-4504.4594,0.00015567,2]
[396230285,1764847831954,-443.7006,0.00015567,2]
[396230286,1764847831967,-200.0,0.00015718,2]
[396230287,1764847831976,-1000.0,0.00015745,2]
[396230288,1764847831986,-500.0,0.00015765,2]
[396230289,1764847831995,-300.0,0.00015765,2]
[396230290,1764847832005,-1200.0,0.00015765,2]
[396230291,1764847832015,-1424.52501446,0.00015766,2]
[396230292,1764847832040,-1037.1543125,0.00015766,2]
[396230293,1764847832051,-15450.65675534,0.00015766,2]
[396230378,1764847838079,-1134.22,0.00015766,2]
[396230379,1764847838090,-581.85001087,0.00015766,2]
[396230380,1764847838102,-2582.04657006,0.00015766,2]
[396230381,1764847838137,-460.21297768,0.00015766,2]
[396230388,1764847839884,-1204.371,0.00015766,2]
[396230389,1764847839989,-786.86100048,0.00015766,2]
[396230390,1764847840005,-460.89401004,0.00015766,2]
[396230391,1764847840045,-74261.49924857,0.00015766,2]
[396230392,1764847840058,-1205.8055,0.00015766,2]
[396230393,1764847840072,-6674.1735,0.00015766,2]
[396230394,1764847840086,-280.9907,0.00015766,2]
[396230395,1764847840099,-166.66,0.0001586,2]
[396230396,1764847840111,-1003.5506884,0.00015865,2]
[396230397,1764847840121,-597.738,0.00015865,2]
[396230398,1764847840134,-500.0,0.00015865,2]
[396230399,1764847840147,-500.0,0.00015865,2]
[396230400,1764847840159,-500.0,0.00015865,2]
[396230401,1764847840171,-336.54278996,0.000159,2]
[396230402,1764847840184,-5751.71083374,0.00015965,2]
[396230403,1764847840197,-7480.55689576,0.00016,4]
[396230404,1764847840210,-500.0,0.00016065,2]
[396230405,1764847840223,-510.70545985,0.00016065,2]
[396230406,1764847840237,-5751.71083367,0.00016077,2]
[396230407,1764847840250,-575.0,0.00016133,2]
[396230409,1764847840263,-250.0,0.00016134,2]
[396230411,1764847840276,-255.0,0.00016156,2]
[396230412,1764847840288,-166.66,0.0001618,2]
[396230413,1764847840302,-5751.71083367,0.00016189,2]
[396230415,1764847840314,-5751.71083367,0.00016301,2]
[396230417,1764847840326,-152.53,0.00016366,2]
[396230419,1764847840339,-5751.71083367,0.00016413,2]
[396230420,1764847840354,-736.53,0.00016438,2]
[396230421,1764847840367,-166.66,0.00016501,2]
[396230422,1764847840379,-5751.71083367,0.00016524,2]
[396230423,1764847840391,-3557.4,0.00016558,2]
[396230424,1764847840401,-5751.71083367,0.00016636,2]
[396230425,1764847840412,-500.0,0.00016641,2]
[396230426,1764847840423,-736.53,0.00016712,2]
[396230427,1764847840438,-174.09,0.00016719,2]
[396230428,1764847840452,-242.55,0.00016719,2]
[396230429,1764847840463,-5751.71083367,0.00016748,2]
[396230430,1764847840474,-6208.48356449,0.0001676,2]
[396230431,1764847840484,-236.85090079,0.0001676,2]
[396230432,1764847840496,-166.66,0.00016821,2]
[396230433,1764847840510,-1060.0908492,0.00016825,2]
[396230434,1764847840522,-276285.4938129,0.00016825,2]
[396230435,1764847840534,-5751.71083367,0.0001686,2]
[396230436,1764847840545,-513.74408775,0.000169,2]
[396230437,1764847840556,-162.3037051,0.000169,2]
[396230438,1764847840568,-168.49829835,0.000169,2]
[396230439,1764847840581,-315.59796836,0.0001696,2]
[396230440,1764847840593,-5751.71083367,0.00016972,2]
[396230441,1764847840604,-736.53,0.00016986,2]
[396230442,1764847840615,-624.5941539,0.00016987,2]
[396230443,1764847840627,-500.0,0.00016987,2]
[396230444,1764847840639,-624.5941539,0.00016987,2]
[396230445,1764847840650,-624.5941539,0.00016987,2]
[396230446,1764847840662,-500.0,0.00016987,2]
[396230447,1764847840673,-624.5941539,0.00016987,2]
[396230448,1764847840685,-624.5941539,0.00016987,2]
[396230449,1764847840697,-624.5941539,0.00016987,2]
[396230450,1764847840707,-417.08586028,0.00016987,2]
[396230451,1764847840720,-624.5941539,0.00016987,2]
[396230452,1764847840732,-624.5941539,0.00016987,2]
[396230453,1764847840744,-624.5941539,0.00016987,2]
[396230454,1764847840756,-624.5941539,0.00016987,2]
[396230455,1764847840767,-624.5941539,0.00016987,2]
[396230456,1764847840779,-624.5941539,0.00016987,2]
[396230457,1764847840791,-624.5941539,0.00016987,2]
[396230458,1764847840803,-624.5941539,0.00016987,2]
[396230459,1764847840814,-624.5941539,0.00016987,2]
[396230460,1764847840825,-624.5941539,0.00016987,2]
[396230461,1764847840838,-624.5941539,0.00016987,2]
[396230462,1764847840851,-624.5941539,0.00016987,2]
[396230463,1764847840863,-624.5941539,0.00016987,2]
[396230464,1764847840875,-624.5941539,0.00016987,2]
[396230465,1764847840887,-624.5941539,0.00016987,2]
[396230466,1764847840899,-624.5941539,0.00016987,2]
[396230467,1764847840911,-624.5941539,0.00016987,2]
[396230468,1764847840923,-624.5941539,0.00016987,2]
[396230469,1764847840935,-624.5941539,0.00016987,2]
[396230470,1764847840946,-624.5941539,0.00016987,2]
[396230471,1764847840959,-624.5941539,0.00016987,2]
[396230472,1764847840970,-624.5941539,0.00016987,2]
[396230473,1764847840982,-624.5941539,0.00016987,2]
[396230474,1764847840993,-624.5941539,0.00016987,2]
[396230475,1764847841004,-624.5941539,0.00016987,2]
[396230476,1764847841017,-624.5941539,0.00016987,2]
[396230477,1764847841028,-624.5941539,0.00016987,2]
[396230478,1764847841039,-624.5941539,0.00016987,2]
[396230479,1764847841051,-624.5941539,0.00016987,2]
[396230480,1764847841063,-624.5941539,0.00016987,2]
[396230481,1764847841075,-624.5941539,0.00016987,2]
[396230482,1764847841087,-624.5941539,0.00016987,2]
[396230483,1764847841098,-624.5941539,0.00016987,2]
[396230484,1764847841110,-624.5941539,0.00016987,2]
[396230485,1764847841122,-624.5941539,0.00016987,2]
[396230486,1764847841134,-624.5941539,0.00016987,2]
[396230487,1764847841145,-624.5941539,0.00016987,2]
[396230488,1764847841157,-624.5941539,0.00016987,2]
[396230489,1764847841168,-624.5941539,0.00016987,2]
[396230490,1764847841179,-624.5941539,0.00016987,2]
[396230491,1764847841191,-624.5941539,0.00016987,2]
[396230492,1764847841203,-624.5941539,0.00016987,2]
[396230493,1764847841214,-624.5941539,0.00016987,2]
[396230494,1764847841225,-624.5941539,0.00016987,2]
[396230495,1764847841237,-624.5941539,0.00016987,2]
[396230496,1764847841248,-624.5941539,0.00016987,2]
[396230497,1764847841260,-624.5941539,0.00016987,2]
[396230498,1764847841271,-624.5941539,0.00016987,2]
[396230499,1764847841283,-624.5941539,0.00016987,2]
[396230500,1764847841294,-624.5941539,0.00016987,2]
[396230501,1764847841305,-624.5941539,0.00016987,2]
[396230502,1764847841317,-624.5941539,0.00016987,2]
[396230503,1764847841328,-624.5941539,0.00016987,2]
[396230504,1764847841342,-624.5941539,0.00016987,2]
[396230505,1764847841354,-624.5941539,0.00016987,2]
[396230506,1764847841365,-620.28660801,0.00016987,2]
[396230507,1764847841376,-620.28660801,0.00016987,2]
[396230508,1764847841387,-620.28660801,0.00016987,2]
[396230509,1764847841397,-620.28660801,0.00016987,2]
[396230510,1764847841409,-620.28660801,0.00016987,2]
[396230511,1764847841419,-620.28660801,0.00016987,2]
[396230512,1764847841430,-620.28660801,0.00016987,2]
[396230513,1764847841442,-620.28660801,0.00016987,2]
[396230514,1764847841453,-620.28660801,0.00016987,2]
[396230515,1764847841463,-620.28660801,0.00016987,2]
[396230516,1764847841475,-620.28660801,0.00016987,2]
[396230517,1764847841487,-620.28660801,0.00016987,2]
[396230518,1764847841497,-620.28660801,0.00016987,2]
[396230519,1764847841509,-620.28660801,0.00016987,2]
[396230520,1764847841520,-620.28660801,0.00016987,2]
[396230521,1764847841531,-620.28660801,0.00016987,2]
[396230522,1764847841542,-620.28660801,0.00016987,2]
[396230523,1764847841554,-620.28660801,0.00016987,2]
[396230524,1764847841564,-620.28660801,0.00016987,2]
[396230525,1764847841575,-620.28660801,0.00016987,2]
[396230526,1764847841586,-620.28660801,0.00016987,2]
[396230527,1764847841597,-620.28660801,0.00016987,2]
[396230528,1764847841609,-620.28660801,0.00016987,2]
[396230529,1764847841620,-620.28660801,0.00016987,2]
[396230530,1764847841632,-620.28660801,0.00016987,2]
[396230531,1764847841644,-620.28660801,0.00016987,2]
[396230532,1764847841657,-620.28660801,0.00016987,2]
[396230533,1764847841669,-620.28660801,0.00016987,2]
[396230534,1764847841681,-620.28660801,0.00016987,2]
[396230535,1764847841693,-213841.33550053,0.00016988,2]
[396230536,1764847841705,-500.0,0.0001699,2]
[396230537,1764847841716,-150.0,0.0001699,2]
[396230538,1764847841725,-150.0,0.0001699,2]
[396230539,1764847841734,-500.0,0.0001699,2]
[396230540,1764847841744,-150.0,0.0001699,2]
[396230541,1764847841755,-210.30255927,0.0001699,2]
[396230542,1764847841765,-150.0,0.0001699,2]
[396230543,1764847841775,-150.0,0.0001699,2]
[396230544,1764847841784,-150.0,0.0001699,2]
[396230545,1764847842049,-150.0,0.0001699,2]
[396230546,1764847842071,-150.0,0.0001699,2]
[396230547,1764847842084,-199.73901061,0.0001699,2]
[396230548,1764847842094,-199.73901061,0.0001699,2]
[396230549,1764847842103,-2000.0,0.00016996,2]
[396230550,1764847842112,-200.0,0.00016996,2]
[396230551,1764847842122,-297.64644088,0.00016996,2]
[396230552,1764847842132,-780.257,0.00016996,2]
[396230553,1764847842142,-1000.0,0.00016996,2]
[396230554,1764847842152,-1000.0,0.00016996,2]
[396230555,1764847842161,-300.0,0.00016999,2]
[396230556,1764847842170,-578.77667957,0.00016999,2]
[396230557,1764847842182,-540143.68448357,0.00017,2]
[396230558,1764847842192,-151.0,0.00017,2]
[396230559,1764847842203,-250.0,0.00017,2]
[396230560,1764847842215,-79904.9949871,0.00017,2]
[396230561,1764847842225,-75403.0712508,0.00017,2]
[396230562,1764847842234,-2000.0,0.00017,2]
[396230563,1764847842244,-152.846296,0.00017,2]
[396230564,1764847842254,-1399973.11616274,0.00017,2]
[396230565,1764847842286,-8143.50243499,0.00017,2]
[396230570,1764847844211,-6208.48356447,0.00016776,2]
[396230571,1764847844220,-14944.01643553,0.00017,2]
[396230576,1764847846114,-1117.68165967,0.00017,2]
[396230579,1764848198499,9925.0,0.0001276,2]
[396230656,1764849037368,-653.52,0.00013699,2]
[396230657,1764849037379,-2751.0,0.00015123,2]
[396230658,1764849037391,-1200.0,0.00015664,2]
[396230659,1764849037401,-300.0,0.00015664,2]
[396230660,1764849037411,-1000.0,0.00015665,2]
[396230661,1764849037422,-1003.5506884,0.00015665,2]
[396230662,1764849037432,-300.0,0.00015665,2]
[396230663,1764849037441,-6674.1735,0.00015666,2]
[396230664,1764849037451,-969.6284,0.00015666,2]
[396230665,1764849037461,-280.9907,0.00015666,2]
[396230666,1764849037470,-5336.8454,0.00015666,2]
[396230667,1764849037479,-1205.8055,0.00015666,2]
[396230668,1764849037489,-44.41196277,0.00015666,2]
[396230687,1764849040182,-929.18,0.00015666,2]
[396230688,1764849040287,-840.89723723,0.00015666,2]
[396230689,1764849040299,-152166.4208,0.00015666,2]
[396230690,1764849040309,-12778.24977303,0.00015666,2]
[396230691,1764849040318,-275.52043561,0.00015666,2]
[396230692,1764849040328,-190.56,0.00015752,2]
[396230693,1764849040338,-259.87,0.00015753,2]
[396230694,1764849040347,-992.22,0.00015756,2]
[396230695,1764849040356,-509.51129037,0.00015756,2]
[396230696,1764849040365,-151.0,0.00015756,2]
[396230697,1764849040375,-151.0,0.00015756,2]
[396230698,1764849040384,-151.0,0.00015756,2]
[396230701,1764849040587,-151.0,0.00015756,2]
[396230702,1764849040598,-151.0,0.00015756,2]
[396230703,1764849040608,-151.0,0.00015756,2]
[396230704,1764849040618,-151.0,0.00015756,2]
[396230705,1764849040628,-151.0,0.00015756,2]
[396230706,1764849040637,-151.0,0.00015756,2]
[396230707,1764849040646,-151.0,0.00015756,2]
[396230708,1764849040657,-151.0,0.00015756,2]
[396230709,1764849040666,-500.0,0.00015756,2]
[396230710,1764849040676,-500.0,0.00015756,2]
[396230711,1764849040684,-500.0,0.00015756,2]
[396230712,1764849040695,-500.0,0.00015756,2]
[396230713,1764849040704,-500.0,0.00015756,2]
[396230714,1764849040714,-500.0,0.00015756,2]
[396230715,1764849040723,-500.0,0.00015756,2]
[396230716,1764849040734,-500.0,0.00015756,2]
[396230717,1764849040744,-200.0,0.00015756,2]
[396230718,1764849040755,-500.0,0.00015756,2]
[396230719,1764849040764,-500.0,0.00015756,2]
[396230720,1764849040773,-500.0,0.00015756,2]
[396230721,1764849040783,-518.5,0.00015756,2]
[396230722,1764849040792,-198.96894634,0.00015765,2]
[396230723,1764849040801,-3751.00742922,0.00015765,2]
[396230724,1764849040811,-1229.22194654,0.00015765,5]
[396230725,1764849040821,-611.75031463,0.00015765,2]
[396230726,1764849040831,-875.705,0.00015765,2]
[396230727,1764849040840,-500.0,0.00015765,2]
[396230728,1764849040849,-500.0,0.00015765,2]
[396230729,1764849040858,-500.0,0.00015765,2]
[396230730,1764849040868,-500.0,0.00015765,2]
[396230731,1764849040878,-521.60476849,0.00015765,2]
[396230732,1764849040888,-506.71814393,0.00015765,2]
[396230733,1764849040898,-507.69829592,0.00015765,2]
[396230734,1764849040907,-509.18007663,0.00015765,2]
[396230735,1764849040917,-500.0,0.00015765,2]
[396230736,1764849040926,-500.0,0.00015765,2]
[396230737,1764849040935,-500.0,0.00015765,2]
[396230738,1764849040945,-468.9517815,0.00015765,2]
[396230739,1764849040954,-12778.249773,0.00015803,2]
[396230740,1764849040964,-206.55,0.00015806,2]
[396230741,1764849040973,-537.6845,0.00015811,2]
[396230742,1764849040982,-202.59163877,0.00015865,2]
[396230743,1764849040991,-500.0,0.00015865,2]
[396230744,1764849040999,-500.0,0.00015865,2]
[396230745,1764849041008,-516.18265431,0.00015865,2]
[396230746,1764849041018,-510.70545985,0.00015865,2]
[396230747,1764849041027,-557.5788265,0.00015866,2]
[396230748,1764849041036,-162.76159357,0.00015873,2]
[396230749,1764849041047,-300.93445897,0.00015873,2]
[396230750,1764849041056,-500.0,0.00015873,2]
[396230751,1764849041066,-501.4245699,0.00015873,2]
[396230752,1764849041075,-500.0,0.00015873,2]
[396230753,1764849041084,-429.24017763,0.00015873,2]
[396230754,1764849041093,-500.0,0.00015873,2]
[396230755,1764849041102,-336.54278996,0.000159,2]
[396230756,1764849041114,-830.0,0.00015918,2]
[396230757,1764849041124,-441.38890768,0.00015921,2]
[396230758,1764849041134,-12778.249773,0.0001594,2]
[396230759,1764849041143,-992.22,0.0001603,2]
[396230760,1764849041154,-6826.72511865,0.00016048,2]
[396230761,1764849041163,-12778.249773,0.00016077,2]
[396230762,1764849041172,-999.99,0.00016116,2]
[396230763,1764849041182,-1458.41,0.00016116,2]
[396230764,1764849041192,-5849.36,0.00016116,2]
[396230765,1764849041202,-150.99,0.00016116,2]
[396230766,1764849041212,-9999.99,0.00016116,2]
[396230767,1764849041226,-9999.99,0.00016116,2]
[396230768,1764849041236,-150.99,0.00016116,2]
[396230769,1764849041246,-299.99,0.00016116,4]
[396230770,1764849041256,-15799.89,0.00016116,2]
[396230771,1764849041268,-9999.99,0.00016116,2]
[396230772,1764849041277,-300.0,0.00016148,2]
[396230773,1764849041287,-151.0,0.00016148,2]
[396230774,1764849041299,-151.0,0.00016148,2]
[396230775,1764849041308,-151.0,0.00016148,2]
[396230776,1764849041318,-335.66906055,0.00016148,2]
[396230777,1764849041328,-578.20924308,0.00016148,2]
[396230778,1764849041338,-574.12855637,0.00016148,2]
[396230779,1764849041347,-1000.0,0.00016148,2]
[396230780,1764849041357,-628.35238982,0.00016148,2]
[396230781,1764849041366,-1000.0,0.00016148,2]
[396230782,1764849041376,-1000.0,0.00016148,2]
[396230783,1764849041385,-1000.0,0.00016148,2]
[396230784,1764849041394,-1000.0,0.00016148,2]
[396230785,1764849041404,-1000.0,0.00016148,2]
[396230786,1764849041413,-2000.0,0.00016148,2]
[396230787,1764849041423,-1000.0,0.00016148,2]
[396230788,1764849041432,-2000.0,0.00016148,2]
[396230789,1764849041442,-1000.0,0.00016148,2]
[396230790,1764849041451,-2000.0,0.00016148,2]
[396230791,1764849041460,-1000.0,0.00016148,2]
[396230792,1764849041470,-2000.0,0.00016148,2]
[396230793,1764849041479,-1000.0,0.00016148,2]
[396230794,1764849041488,-2000.0,0.00016148,2]
[396230795,1764849041498,-1000.0,0.00016148,2]
[396230796,1764849041507,-2000.0,0.00016148,2]
[396230797,1764849041516,-500.0,0.00016148,2]
[396230798,1764849041525,-2000.0,0.00016148,2]
[396230799,1764849041534,-500.0,0.00016148,2]
[396230800,1764849041543,-151.0,0.00016148,2]
[396230801,1764849041553,-1469.71413574,0.00016148,2]
[396230802,1764849041562,-500.0,0.00016148,2]
[396230803,1764849041572,-2000.0,0.00016148,2]
[396230804,1764849041581,-500.0,0.00016148,2]
[396230805,1764849041590,-2000.0,0.00016148,2]
[396230806,1764849041600,-500.0,0.00016148,2]
[396230807,1764849041609,-2000.0,0.00016148,2]
[396230808,1764849041618,-500.0,0.00016148,2]
[396230809,1764849041627,-463.0,0.00016148,2]
[396230810,1764849041636,-2000.0,0.00016148,2]
[396230811,1764849041645,-500.0,0.00016148,2]
[396230812,1764849041654,-500.0,0.00016148,2]
[396230813,1764849041663,-500.0,0.00016148,2]
[396230814,1764849041673,-500.0,0.00016148,2]
[396230815,1764849041682,-500.0,0.00016148,2]
[396230816,1764849041691,-311.1,0.00016148,2]
[396230817,1764849041700,-500.0,0.00016148,2]
[396230818,1764849041709,-500.0,0.00016148,2]
[396230819,1764849041718,-500.0,0.00016148,2]
[396230820,1764849041727,-500.0,0.00016148,2]
[396230821,1764849041738,-2340.0,0.00016148,2]
[396230822,1764849041747,-500.0,0.00016148,2]
[396230823,1764849041758,-500.0,0.00016148,2]
[396230824,1764849041767,-250.0,0.00016148,2]
[396230825,1764849041776,-383.26785685,0.00016148,2]
[396230826,1764849041785,-250.0,0.00016148,2]
[396230827,1764849041795,-250.0,0.00016148,2]
[396230828,1764849041804,-277.35679052,0.00016148,2]
[396230829,1764849041813,-250.0,0.00016148,2]
[396230830,1764849041822,-250.0,0.00016148,2]
[396230831,1764849041832,-250.0,0.00016148,2]
[396230832,1764849041841,-250.0,0.00016148,2]
[396230833,1764849041852,-250.0,0.00016148,2]
[396230834,1764849041862,-250.0,0.00016148,2]
[396230835,1764849041871,-2173.27178046,0.00016148,2]
[396230836,1764849041880,-250.0,0.00016148,2]
[396230837,1764849041890,-250.0,0.00016148,2]
[396230838,1764849041899,-250.0,0.00016148,2]
[396230839,1764849041908,-500.0,0.00016148,2]
[396230840,1764849041917,-500.0,0.00016148,2]
[396230841,1764849041926,-500.0,0.00016148,2]
[396230842,1764849041935,-500.0,0.00016148,2]
[396230843,1764849041945,-500.0,0.00016148,2]
[396230844,1764849041955,-500.0,0.00016148,2]
[396230845,1764849041965,-500.0,0.00016148,2]
[396230846,1764849041975,-500.0,0.00016148,2]
[396230847,1764849041984,-500.0,0.00016148,2]
[396230848,1764849041993,-500.0,0.00016148,2]
[396230849,1764849042002,-500.0,0.00016148,2]
[396230850,1764849042014,-6826.7251186,0.00016187,2]
[396230851,1764849042026,-12778.249773,0.00016214,2]
[396230852,1764849042035,-992.22,0.00016304,2]
[396230853,1764849042044,-6826.7251186,0.00016326,2]
[396230854,1764849042054,-12778.249773,0.00016352,2]
[396230855,1764849042063,-500.0,0.00016395,2]
[396230856,1764849042073,-748.0,0.00016411,2]
[396230857,1764849042083,-500.0,0.00016421,2]
[396230858,1764849042093,-500.0,0.00016421,2]
[396230859,1764849042103,-500.0,0.00016437,2]
[396230860,1764849042112,-1000.0,0.00016438,2]
[396230861,1764849042123,-1000.0,0.00016438,2]
[396230862,1764849042132,-7532.56,0.00016438,2]
[396230863,1764849042141,-6826.7251186,0.00016466,2]
[396230864,1764849042151,-12778.249773,0.00016489,2]
[396230865,1764849042161,-992.22,0.00016578,2]
[396230866,1764849042171,-780.257,0.00016582,2]
[396230867,1764849042181,-150.0,0.00016583,2]
[396230868,1764849042190,-6826.7251186,0.00016605,2]
[396230869,1764849042199,-12778.249773,0.00016626,2]
[396230870,1764849042210,-151.0,0.00016696,2]
[396230871,1764849042221,-151.0,0.00016696,2]
[396230872,1764849042232,-595.37131296,0.00016696,2]
[396230873,1764849042242,-2340.0,0.00016696,2]
[396230874,1764849042251,-6826.7251186,0.00016744,2]
[396230875,1764849042260,-500.0,0.00016762,2]
[396230876,1764849042270,-624.5941539,0.00016762,2]
[396230877,1764849042280,-624.5941539,0.00016762,2]
[396230878,1764849042290,-417.08586028,0.00016762,2]
[396230879,1764849042301,-624.5941539,0.00016762,2]
[396230880,1764849042311,-624.5941539,0.00016762,2]
[396230881,1764849042321,-500.0,0.00016762,2]
[396230882,1764849042330,-624.5941539,0.00016762,2]
[396230883,1764849042340,-624.5941539,0.00016762,2]
[396230884,1764849042349,-624.5941539,0.00016762,2]
[396230885,1764849042359,-624.5941539,0.00016762,2]
[396230886,1764849042369,-624.5941539,0.00016762,2]
[396230887,1764849042378,-624.5941539,0.00016762,2]
[396230888,1764849042388,-624.5941539,0.00016762,2]
[396230889,1764849042397,-624.5941539,0.00016762,2]
[396230890,1764849042407,-624.5941539,0.00016762,2]
[396230891,1764849042417,-624.5941539,0.00016762,2]
[396230892,1764849042426,-624.5941539,0.00016762,2]
[396230893,1764849042436,-624.5941539,0.00016762,2]
[396230894,1764849042445,-624.5941539,0.00016762,2]
[396230895,1764849042455,-624.5941539,0.00016762,2]
[396230896,1764849042466,-624.5941539,0.00016762,2]
[396230897,1764849042476,-624.5941539,0.00016762,2]
[396230898,1764849042485,-624.5941539,0.00016762,2]
[396230899,1764849042495,-624.5941539,0.00016762,2]
[396230900,1764849042504,-624.5941539,0.00016762,2]
[396230901,1764849042513,-624.5941539,0.00016762,2]
[396230902,1764849042523,-624.5941539,0.00016762,2]
[396230903,1764849042532,-624.5941539,0.00016762,2]
[396230904,1764849042541,-624.5941539,0.00016762,2]
[396230905,1764849042551,-624.5941539,0.00016762,2]
[396230906,1764849042560,-624.5941539,0.00016762,2]
[396230907,1764849042570,-624.5941539,0.00016762,2]
[396230908,1764849042579,-624.5941539,0.00016762,2]
[396230909,1764849042588,-624.5941539,0.00016762,2]
[396230910,1764849042597,-624.5941539,0.00016762,2]
[396230911,1764849042607,-624.5941539,0.00016762,2]
[396230912,1764849042616,-624.5941539,0.00016762,2]
[396230913,1764849042626,-624.5941539,0.00016762,2]
[396230914,1764849042635,-624.5941539,0.00016762,2]
[396230915,1764849042644,-624.5941539,0.00016762,2]
[396230916,1764849042654,-624.5941539,0.00016762,2]
[396230917,1764849042663,-624.5941539,0.00016762,2]
[396230918,1764849042672,-624.5941539,0.00016762,2]
[396230919,1764849042681,-624.5941539,0.00016762,2]
[396230920,1764849042690,-624.5941539,0.00016762,2]
[396230921,1764849042699,-624.5941539,0.00016762,2]
[396230922,1764849042708,-624.5941539,0.00016762,2]
[396230923,1764849042717,-624.5941539,0.00016762,2]
[396230924,1764849042726,-624.5941539,0.00016762,2]
[396230925,1764849042737,-624.5941539,0.00016762,2]
[396230926,1764849042746,-624.5941539,0.00016762,2]
[396230927,1764849042755,-624.5941539,0.00016762,2]
[396230928,1764849042765,-624.5941539,0.00016762,2]
[396230929,1764849042774,-624.5941539,0.00016762,2]
[396230930,1764849042783,-624.5941539,0.00016762,2]
[396230931,1764849042792,-624.5941539,0.00016762,2]
[396230933,1764849042802,-624.5941539,0.00016762,2]
[396230935,1764849042811,-624.5941539,0.00016762,2]
[396230936,1764849042820,-624.5941539,0.00016762,2]
[396230937,1764849042829,-624.5941539,0.00016762,2]
[396230938,1764849042838,-624.5941539,0.00016762,2]
[396230939,1764849042848,-624.5941539,0.00016762,2]
[396230940,1764849042857,-624.5941539,0.00016762,2]
[396230941,1764849042866,-624.5941539,0.00016762,2]
[396230942,1764849042875,-624.5941539,0.00016762,2]
[396230943,1764849042884,-624.5941539,0.00016762,2]
[396230944,1764849042894,-624.5941539,0.00016762,2]
[396230945,1764849042903,-624.5941539,0.00016762,2]
[396230946,1764849042912,-12778.249773,0.00016763,2]
[396230947,1764849042922,-507.17450848,0.00016824,2]
[396230948,1764849042931,-500.0,0.00016824,2]
[396230949,1764849042940,-500.0,0.00016824,2]
[396230950,1764849042949,-500.0,0.00016824,2]
[396230951,1764849042958,-500.0,0.00016824,2]
[396230953,1764849042968,-500.0,0.00016824,2]
[396230954,1764849042977,-992.22,0.00016852,2]
[396230955,1764849042986,-6826.7251186,0.00016883,2]
[396230956,1764849042996,-162.3037051,0.00016898,2]
[396230957,1764849043006,-181.41208312,0.00016898,2]
[396230958,1764849043015,-12024.0,0.00016899,2]
[396230959,1764849043024,-1231.03321548,0.000169,2]
[396230960,1764849043034,-12778.249773,0.000169,2]
[396230961,1764849043043,-10000.0,0.000169,2]
[396230962,1764849043052,-2619.84735268,0.000169,2]
[396230963,1764849043061,-210.94522326,0.000169,2]
[396230964,1764849043070,-168.49829835,0.000169,2]
[396230965,1764849043078,-885.16939627,0.00016967,2]
[396230966,1764849043087,-598.94895177,0.00016973,2]
[396230968,1764849043096,-500.0,0.00016973,2]
[396230970,1764849043105,-506.24410093,0.00016986,2]
[396230971,1764849043115,-500.0,0.00016986,2]
[396230972,1764849043125,-500.0,0.00016986,2]
[396230973,1764849043134,-501.89145064,0.00016986,2]